Cogmind - Beta 13 *** ADVENTURER MODE // 2024.05.23 @ 23:08:22 Player: Blade Result: Self-destructed Performance ------------- Evolutions (3) 1500 Regions Visited (7) 1400 Robots Destroyed (29) 145 Value Destroyed (888) 888 Prototype IDs (3) 60 Alien Tech Used (0) 0 Bonus (117) 117 TOTAL SCORE: 4110 Bonus ------- Follower Combat Kills 117 Cogmind --------- Core Integrity 466/700 Matter 8/300 Energy 150/150 System Corruption 0% Temperature Cool (0) Movement Core (250) Ox4 Location -7/Factory Parts ------- > --- POWER (1) -------- Micro Nuclear Core > --- PROPULSION (2) --- (None) > --- UTILITY (6) ------ Experimental Sensor Array Improved Signal Interpreter Improved Power Shielding Improved Utility Shielding Improved Light Armor Plating > --- WEAPON (4) ------- (None) > --- INVENTORY (5) ---- Compact Matter Pod (144) Sensor Array Peak State ------------ > --- POWER ------------ Light Angular Momentum Engine > --- PROPULSION ------- Advanced Treads Advanced Treads > --- UTILITY ---------- Medium Storage Unit Experimental Sensor Array Improved Signal Interpreter Improved Power Shielding Heavy Armor Plating > --- WEAPON ----------- Improved Assault Rifle Improved Assault Rifle Improved Assault Rifle Assault Cannon > --- INVENTORY -------- Advanced Treads Compact Matter Pod Sensor Array Improved Power Shielding [Rating: 46] Favorites ----------- Power Ion Engine Engine Ion Engine Power Core Micro Nuclear Core Propulsion Advanced Treads Treads Advanced Treads Leg Aluminum Leg Utility Improved Power Shielding Device Experimental Sensor Array Storage Small Storage Unit Processor Signal Interpreter Protection Improved Power Shielding Weapon Assault Cannon Energy Gun EM Pulse Gun Ballistic Gun Improved Assault Rifle Ballistic Cannon Assault Cannon Build | -11 -10 -9 -9 -8 -7 -7 -7 ------- Run | Yrd Mat Mat Min Mat Fac Was Fac Slots Evolved 6 | . . 2 . 2 2 . . Power . | . . . . . . . . Propulsion . | . . . . . . . . Utility 4 | . . 2 . 1 1 . . Weapon 2 | . . . . 1 1 . . Parts Attached 36 | . 1 6 7 10 6 2 4 Power 2 | . . . 1 . . . 1 Engine 1 | . . . 1 . . . . Core 1 | . . . . . . . 1 Reactor . | . . . . . . . . Propulsion 5 | . . 2 . 1 . 1 1 Treads 5 | . . 2 . 1 . 1 1 Leg . | . . . . . . . . Wheel . | . . . . . . . . Hover . | . . . . . . . . Flight . | . . . . . . . . Utility 20 | . 1 2 6 5 4 . 2 Device 7 | . 1 . 4 2 . . . Storage 3 | . . . . 1 2 . . Processor 2 | . . . 1 1 . . . Hackware . | . . . . . . . . Protection 8 | . . 2 1 1 2 . 2 Artifact . | . . . . . . . . Weapon 9 | . . 2 . 4 2 1 . Energy Gun . | . . . . . . . . Energy Cannon . | . . . . . . . . Ballistic Gun 4 | . . . . 3 . 1 . Ballistic Cannon 5 | . . 2 . 1 2 . . Launcher . | . . . . . . . . Special Weapon . | . . . . . . . . Impact Weapon . | . . . . . . . . Slashing Weapon . | . . . . . . . . Piercing Weapon . | . . . . . . . . Special Melee Weapon . | . . . . . . . . Unidentified Prototypes 3 | . . . 2 1 . . . Parts Lost 7 | . . . . 1 . 5 1 Power 1 | . . . . . . 1 . Propulsion 4 | . . . . 1 . 2 1 Utility 1 | . . . . . . 1 . Weapon 1 | . . . . . . 1 . Highest Loss Streak 5 | . . . . 1 . 5 1 To Critical Strikes . | . . . . . . . . Average Slot Usage (%) 88 | . 98 94 99 95 84 55 46 Engine 8 | . 14 11 11 9 7 3 . Treads 15 | . . 16 22 18 15 7 6 Leg 3 | . 28 5 . . . . . Device 11 | . 12 11 11 16 7 7 7 Storage 9 | . 14 11 11 9 7 4 . Processor 4 | . . . 5 5 7 7 7 Protection 13 | . . 16 16 9 13 12 15 Energy Gun 1 | . 14 3 . . . . . Ballistic Gun 7 | . 14 3 . 21 23 10 . Ballistic Cannon 11 | . . 15 22 5 1 . . Naked Turns . | . . . . . . . . Heaviest Build 51 | 14 15 25 27 40 51 41 14 Greatest Support 44 | 20 20 44 44 44 44 44 22 Greatest Overweight (x) 11 | . . . . . 1 11 4 Average Overweight (x) . | . . . . . . . . Largest Inventory Capacity 10 | 8 8 8 8 8 10 8 5 Average Capacity 7 | 8 8 8 8 8 8 7 5 Most Carried 8 | 6 7 8 8 7 5 4 4 Average Carried 6 | 6 6 7 7 6 4 4 2 Final Capacity 8 | 8 8 8 8 8 8 5 5 Final Carried 8 | 6 7 8 8 6 4 4 2 Class Distribution -------------------- 73% | Mutant 18% | Skirmisher 7% | Tank Dominant Class ---------------- Mutant | -10/Materials Mutant | -9/Materials Mutant | -9/Mines Skirmisher | -8/Materials Skirmisher | -7/Factory Mutant | -7/Waste Mutant | -7/Factory Resources | -11 -10 -9 -9 -8 -7 -7 -7 ----------- Run | Yrd Mat Mat Min Mat Fac Was Fac Matter Collected 802 | 200 . 123 293 186 . . . Remotely . | . . . . . . . . Salvage Created 1246 | . 30 156 173 575 . 312 . Parts 56 | . 4 12 12 22 . 3 3 Haulers Intercepted 1 | . . . . 1 . . . Recyclers Shooed 1 | . . . 1 . . . . Parts Field Recycled . | . . . . . . . . Retrieved Matter . | . . . . . . . . Parts Self-Destructed . | . . . . . . . . Prevented . | . . . . . . . . Kills | -11 -10 -9 -9 -8 -7 -7 -7 ------- Run | Yrd Mat Mat Min Mat Fac Was Fac Combat Hostiles Destroyed 24 | . . 7 5 11 . 1 . Guns 12 | . . . . 11 . 1 . Cannons 12 | . . 7 5 . . . . Classes Destroyed 10 | . 1 3 3 1 . 1 1 Worker 1 | . . . 1 . . . . Builder 1 | . . . . . . . 1 Hauler 1 | . . . . 1 . . . Recycler 1 | . . . 1 . . . . Watcher 1 | . 1 . . . . . . Swarmer 5 | . . 3 2 . . . . Grunt 12 | . . 2 2 8 . . . Brawler 3 | . . . 1 2 . . . Sentry 3 | . . 2 . 1 . . . Compactor 1 | . . . . . . 1 . Best Kill Streak 9 | . 1 3 5 9 . 1 1 Combat Bots Only 9 | . . 3 4 9 . 1 . Max Kills in Single Turn 1 | . 1 1 1 1 . 1 1 Gunslinging . | . . . . . . . . Exploded . | . . . . . . . . Melee . | . . . . . . . . Uniques/NPCs Destroyed . | . . . . . . . . Combat | -11 -10 -9 -9 -8 -7 -7 -7 -------- Run | Yrd Mat Mat Min Mat Fac Was Fac Hostile Shots Fired 273 | . 9 56 20 51 . 11 126 Missed 100 | . 5 14 7 13 . 2 59 Damage Taken 1968 | . 37 413 119 472 . 370 557 Core 278 | . 8 32 4 . . . 234 Absorbed by Shields . | . . . . . . . . Redirected to Shielding 167 | . . 27 11 28 . 29 72 Ignored by Resistances 580 | . 11 122 39 138 . 97 173 Core Remaining (%) 96 | 100 96 . 91 100 . . . Volleys Fired 59 | . 1 14 10 26 . 8 . Largest 3 | . 2 2 2 3 . 3 . Hottest 88 | . 60 88 88 69 . 69 . Shots Fired 146 | . 2 28 20 78 . 18 . Gun 98 | . 2 . . 78 . 18 . Cannon 48 | . . 28 20 . . . . Launcher . | . . . . . . . . Special . | . . . . . . . . Kinetic 145 | . 1 28 20 78 . 18 . Thermal . | . . . . . . . . Explosive . | . . . . . . . . Electromagnetic 1 | . 1 . . . . . . Robot Hit Streak 50 | . 1 6 12 50 . 13 . Robot Miss Streak 4 | . 1 1 1 4 . 1 . Penetration Max . | . . . . . . . . Secondary Targets 6 | . . . . 6 . . . Max Gunslinging Chain 1 | . . . . 1 . . . Shots Hit Robots 115 | . 1 19 13 65 . 17 . Core Hits 45 | . 1 7 6 26 . 5 . Critical Kills . | . . . . . . . . Critical Parts Destroyed . | . . . . . . . . Critical Strikes 2 | . . . 2 . . . . Blast 2 | . . . 2 . . . . Melee Attacks . | . . . . . . . . Impact . | . . . . . . . . Slashing . | . . . . . . . . Piercing . | . . . . . . . . Sneak Attacks . | . . . . . . . . Combat Hostiles . | . . . . . . . . Follow-up Attacks . | . . . . . . . . Damage Inflicted 2065 | . 13 468 287 1006 . 283 8 Guns 1302 | . 13 . . 1006 . 283 . Cannons 754 | . . 468 286 . . . . Explosions . | . . . . . . . . Melee . | . . . . . . . . Ramming 9 | . . . 1 . . . 8 Kinetic 2056 | . 13 468 286 1006 . 283 . Thermal . | . . . . . . . . Explosive . | . . . . . . . . Electromagnetic . | . . . . . . . . Impact . | . . . . . . . . Slashing . | . . . . . . . . Piercing . | . . . . . . . . Highest Corruption . | . . . . . . . . Average Corruption . | . . . . . . . . Corruption Purged . | . . . . . . . . Corruption Blocked . | . . . . . . . . Overload Shots . | . . . . . . . . Overflow Damage 8 | . . 8 . . . . . Projectiles 8 | . . 8 . . . . . Explosions . | . . . . . . . . Melee . | . . . . . . . . Knockbacks 3 | . . . 3 . . . . Impact . | . . . . . . . . Kinetic 3 | . . . 3 . . . . Secondary . | . . . . . . . . Self-Inflicted Damage . | . . . . . . . . Shots . | . . . . . . . . Rammed 3 | . . . 1 . . . 2 Targets Rammed 6 | . . . 2 1 . . 3 Kicked . | . . . . . . . . Crushed 3 | . . . 1 1 . . 1 Highest Temperature 336 | . . 213 118 336 . 18 . Average Temperature 96 | . . 83 60 136 . 7 . Received Heat Transfer 714 | . 27 162 18 315 . . 192 Siege Activations . | . . . . . . . . Robots Corrupted . | . . . . . . . . Combat Hostiles . | . . . . . . . . Parts Fried . | . . . . . . . . Impact Corruptions . | . . . . . . . . Robots Melted . | . . . . . . . . Combat Hostiles . | . . . . . . . . Parts Melted . | . . . . . . . . Heat Transferred . | . . . . . . . . Parts Sabotaged . | . . . . . . . . Parts Stolen . | . . . . . . . . Parts Stripped . | . . . . . . . . Power Chain Reactions . | . . . . . . . . Alert | -11 -10 -9 -9 -8 -7 -7 -7 ------- Run | Yrd Mat Mat Min Mat Fac Was Fac Peak Influence 271 | . 40 250 271 271 33 24 29 Initial 82 | . . 14 82 22 33 9 9 Average 99 | . 14 109 147 137 33 11 11 Maximum Alert Level 1 | . . 1 1 1 . . . Low Security (%) 74 | 100 100 76 59 61 100 100 100 Level 1 25 | . . 23 40 38 . . . Level 2 . | . . . . . . . . Level 3 . | . . . . . . . . Level 4 . | . . . . . . . . Level 5 . | . . . . . . . . High Security . | . . . . . . . . Max Security . | . . . . . . . . Squads Dispatched 3 | . 1 . . 2 . . . Investigation 1 | . 1 . . . . . . Extermination . | . . . . . . . . Reinforcement 2 | . . . . 2 . . . Assault . | . . . . . . . . Garrison . | . . . . . . . . Intercept . | . . . . . . . . Searches Triggered . | . . . . . . . . Construction Impeded . | . . . . . . . . Haulers Reinforced . | . . . . . . . . Active Scanning Responses . | . . . . . . . . Cargo Convoy Interrupts . | . . . . . . . . Stealth | -11 -10 -9 -9 -8 -7 -7 -7 --------- Run | Yrd Mat Mat Min Mat Fac Was Fac Distress Signals 4 | . . . . 4 . . . Communications Jammed . | . . . . . . . . Distress Signals . | . . . . . . . . Times Spotted 47 | . 5 9 8 18 . 6 1 Peak Tracking Total 9 | . 4 3 4 9 . 4 1 Tactical Retreats 2 | . . . 2 . . . . Traps | -11 -10 -9 -9 -8 -7 -7 -7 ------- Run | Yrd Mat Mat Min Mat Fac Was Fac Traps Triggered 1 | . . . . . 1 . . Indirectly . | . . . . . . . . Trap Hack Attempts . | . . . . . . . . Triggered . | . . . . . . . . Disarmed . | . . . . . . . . Reprogrammed . | . . . . . . . . Reused . | . . . . . . . . Traps Extracted . | . . . . . . . . Installed . | . . . . . . . . Triggered . | . . . . . . . . Machines | -11 -10 -9 -9 -8 -7 -7 -7 ---------- Run | Yrd Mat Mat Min Mat Fac Was Fac Machines Disabled . | . . . . . . . . Max in Single Turn . | . . . . . . . . Machines Repaired . | . . . . . . . . Machines Dismantled . | . . . . . . . . Machines Sabotaged . | . . . . . . . . Overloaded Fab Kills . | . . . . . . . . Hacking | -11 -10 -9 -9 -8 -7 -7 -7 --------- Run | Yrd Mat Mat Min Mat Fac Was Fac Machines Accessed 6 | . 2 2 1 1 . . . Terminals 5 | . 2 2 . 1 . . . Fabricators . | . . . . . . . . Repair Stations . | . . . . . . . . Recycling Units . | . . . . . . . . Scanalyzers . | . . . . . . . . Garrison Access . | . . . . . . . . Total Hacks 14 | . 7 4 1 2 . . . Successful 7 | . 3 3 1 . . . . Failed 7 | . 4 1 . 2 . . . Catastrophic 1 | . 1 . . . . . . Database Lockouts . | . . . . . . . . Manual 10 | . 7 3 . . . . . Terminals 13 | . 7 4 . 2 . . . Fabricators . | . . . . . . . . Repair Stations . | . . . . . . . . Recycling Units . | . . . . . . . . Scanalyzers . | . . . . . . . . Garrison Access . | . . . . . . . . Terminal Hacks 7 | . 3 3 1 . . . . Open Door 1 | . . . 1 . . . . Level Access Points 1 | . 1 . . . . . . Terminal Index 2 | . 1 1 . . . . . Security Status 1 | . . 1 . . . . . Hauler Manifests 2 | . 1 1 . . . . . Fabricator Hacks . | . . . . . . . . Repair Station Hacks . | . . . . . . . . Recycling Unit Hacks . | . . . . . . . . Scanalyzer . | . . . . . . . . Garrison Access Hacks . | . . . . . . . . Unauthorized Hacks . | . . . . . . . . Terminals . | . . . . . . . . Fabricators . | . . . . . . . . Repair Stations . | . . . . . . . . Recycling Units . | . . . . . . . . Scanalyzers . | . . . . . . . . Garrison Access . | . . . . . . . . Data Cores Recovered . | . . . . . . . . Used . | . . . . . . . . Hacking Detections 3 | . 1 1 . 1 . . . Full Trace Events . | . . . . . . . . Feedback Events . | . . . . . . . . Feedback Blocked . | . . . . . . . . Robot Schematics Acquired . | . . . . . . . . Robots Built . | . . . . . . . . Authchips . | . . . . . . . . Time . | . . . . . . . . Total Robot Build Rating . | . . . . . . . . Part Schematics Acquired . | . . . . . . . . Parts Built . | . . . . . . . . Authchips . | . . . . . . . . Time . | . . . . . . . . Total Part Build Rating . | . . . . . . . . Parts Repaired . | . . . . . . . . Time . | . . . . . . . . Parts Recycled . | . . . . . . . . Recycled Matter . | . . . . . . . . Retrieved Matter . | . . . . . . . . Retrieved Components . | . . . . . . . . Parts Scanalyzed . | . . . . . . . . Part Schematics Acquired . | . . . . . . . . Parts Damaged . | . . . . . . . . Bothacking | -11 -10 -9 -9 -8 -7 -7 -7 ------------ Run | Yrd Mat Mat Min Mat Fac Was Fac Used RIF Installer . | . . . . . . . . Robots Hacked . | . . . . . . . . Non-combat . | . . . . . . . . Combat . | . . . . . . . . Robot Hacks Applied . | . . . . . . . . Relay Couplers Released . | . . . . . . . . Fabnet Peak Effective % . | . . . . . . . . Robots Rewired . | . . . . . . . . Allies Hacked . | . . . . . . . . Hacks Repelled . | . . . . . . . . Allies | -11 -10 -9 -9 -8 -7 -7 -7 -------- Run | Yrd Mat Mat Min Mat Fac Was Fac Total Allies 6 | . . . 6 . . . . Largest Group 6 | . . . 6 4 . . . Highest-Rated Group 118 | . . . 118 56 . . . Highest-Rated Ally 31 | . . . 31 16 . . . Total Orders . | . . . . . . . . Ally Attacks 33 | . . . 17 16 . . . Total Damage 378 | . . . 208 170 . . . Kills 6 | . . . 4 2 . . . Allies Corrupted . | . . . . . . . . Allies Melted . | . . . . . . . . Intel | -11 -10 -9 -9 -8 -7 -7 -7 ------- Run | Yrd Mat Mat Min Mat Fac Was Fac Robot Analysis Total . | . . . . . . . . Derelict Logs Recovered . | . . . . . . . . Drone Launches . | . . . . . . . . Drone Recoveries . | . . . . . . . . Exploration | -11 -10 -9 -9 -8 -7 -7 -7 ------------- Run | Yrd Mat Mat Min Mat Fac Was Fac Turns Passed 2592 | 2 223 348 914 535 118 91 361 Spaces Moved 1658 | 2 182 207 584 286 74 77 246 Core 71 | . . . . . . 59 12 Treads 1334 | . . 138 584 286 74 18 234 Legs 253 | 2 182 69 . . . . . Wheels . | . . . . . . . . Hover . | . . . . . . . . Flight . | . . . . . . . . Fastest Speed 50 | 120 120 120 145 145 145 50 50 Average Speed 138 | 120 120 136 145 145 147 85 142 Slowest Speed 600 | 120 120 145 145 145 225 600 250 Overloaded Moves . | . . . . . . . . Propulsion Burnouts . | . . . . . . . . Robots Hopped . | . . . . . . . . Cave-ins Triggered . | . . . . . . . . Exploration Rate (%) 29 | 1 28 22 82 20 3 72 5 Regions Visited 7 Branch Regions 1 Pre-discovered Areas . | . . . . . . . . Known Exits Taken 3 | . 1 . 1 1 . . . Unknown Exits Taken 2 | 1 . 1 . . . . . Scrap Searched 2 | . . . 2 . . . . Spaces Dug . | . . . . . . . . Terrain Destroyed 5 | . . 3 2 . . . . Melee . | . . . . . . . . Projectile 5 | . . 3 2 . . . . AOE . | . . . . . . . . Terrain Rammed . | . . . . . . . . Walls Destroyed . | . . . . . . . . Machines Disabled . | . . . . . . . . Actions | -11 -10 -9 -9 -8 -7 -7 -7 --------- Run | Yrd Mat Mat Min Mat Fac Was Fac Total 1846 | 1 184 246 631 360 85 86 253 Wait 56 | . . 5 21 30 . . . Move 1652 | 1 181 206 583 285 74 76 246 Hop . | . . . . . . . . Pick Up 8 | . 1 6 1 . . . . Fast Attach 27 | . 1 6 5 7 4 2 2 Attach 7 | . . . . 3 2 . 2 Detach 1 | . . . . 1 . . . Swap 2 | . . . 2 . . . . Drop 28 | . . 9 7 7 5 . . Fire 59 | . 1 14 10 26 . 8 . Melee . | . . . . . . . . Ram . | . . . . . . . . Kick . | . . . . . . . . Crush 6 | . . . 2 1 . . 3 Escape Stasis . | . . . . . . . . Rewire . | . . . . . . . . Trap . | . . . . . . . . Miscellaneous . | . . . . . . . . Route ------- -11/Scrapyard -10/Materials (discovered 3 exits: *Mat x3) -9/Materials (discovered 2 exits: *Min / [*Sto]) -9/Mines (discovered 2 exits: *Mat x2) -8/Materials -7/Factory -7/Waste -7/Factory History --------- Turn | Location | Event 1 | -11/Scrapyard | Discovered new exit (range 1) 3 | -11/Scrapyard | Entered Materials 103 | -10/Materials | Identified exit to Materials 226 | -10/Materials | Entered another Materials area 226 | -9/Materials | Evolved 2 slots: Utility x2 364 | -9/Materials | Build established: Mutant 417 | -9/Materials | Discovered new exit (range 10) 554 | -9/Materials | Discovered new exit (range 9) 574 | -9/Materials | Entered Mines 614 | -9/Mines | Discovered new exit (range 6) 633 | -9/Mines | Assisted by bots powering up and referring to "LRC-V3" 766 | -9/Mines | Discovered new exit (range 7) 900 | -9/Mines | Received a Mining Laser from a helpful Derelict 1042 | -9/Mines | Found a damaged Exp. Sensor Array with a note attached 1045 | -9/Mines | Found Prototype Device 1045 | -9/Mines | Identified Exp. Sensor Array 1210 | -9/Mines | Found the Drone Emporium 1226 | -9/Mines | Found Prototype Device 1226 | -9/Mines | Identified Decoy Drone Bay 1339 | -9/Mines | Identified exit to Materials 1488 | -9/Mines | Entered Materials 1488 | -8/Materials | Accompanied by 4 allies 1488 | -8/Materials | Evolved 2 slots: Utility x1, Weapon x1 1655 | -8/Materials | Lost 4 allies 1702 | -8/Materials | Destroyed 9 combat bots 1986 | -8/Materials | Discovered new exit (range 4) 2020 | -8/Materials | Identified exit to Factory 2023 | -8/Materials | Entered Factory 2023 | -7/Factory | Evolved 2 slots: Utility x1, Weapon x1 2141 | -7/Factory | Sucked down chute 2141 | -7/Factory | Entered Waste 2156 | -7/Waste | Spotted C-40 Crusher 2162 | -7/Waste | Spotted C-40 Crusher 2170 | -7/Waste | Destroyed C-40 Crusher 2176 | -7/Waste | Spotted C-40 Crusher 2180 | -7/Waste | Crushed by Compactor (1 part destroyed, 1 dropped) 2183 | -7/Waste | Crushed by Compactor (1 part destroyed, 1 dropped) 2186 | -7/Waste | Crushed by Compactor (0 parts destroyed, 1 dropped) 2197 | -7/Waste | Crushed by Compactor (1 part destroyed, 1 dropped) 2199 | -7/Waste | Crushed by Compactor (1 part destroyed) 2202 | -7/Waste | Crushed by Compactor (0 parts destroyed, 1 dropped) 2213 | -7/Waste | Spotted C-40 Crusher 2218 | -7/Waste | Spotted C-40 Crusher 2225 | -7/Waste | Spotted C-40 Crusher 2225 | -7/Waste | Discovered new exit (range 15) 2232 | -7/Waste | Identified exit to Factory 2232 | -7/Waste | Entered Factory 2234 | -7/Factory | Lost 5 parts (1p2n1u1w) 2593 | -7/Factory | Self-destructed Last Messages --------------- lockdown mode. 02559_ Power Conduit explodes. 02559_ M-28 Smith destroyed. 02559_ Repair Station disabled. 02559_ U-05 Engineer destroyed. 02559_ U-05 Engineer lays Concrete. 02563_ U-05 Engineer builds a Wall. 02568_ U-05 Engineer lays Concrete. 02571_ U-05 Engineer builds a Wall. 02571_ Slammed into U-05 Engineer. 02575_ Crushed U-05 Engineer. 02575_ U-05 Engineer destroyed. 02577_ U-05 Engineer builds a Wall. 02581_ Acquired Imp. Light Armor Plating. 02585_ Nuclear Reactor explodes. 02585_ Adv. Treads destroyed. 02587_ U-05 Engineer lays Concrete. 02590_ The unstable cave ceiling collapses. 02590_ U-05 Engineer builds a Wall. 02591_ The unstable cave ceiling collapses. Map ----- +----------------------------------------------------+ | ################## #??????????????????????? | | #?????# """ #??????????????????????? | | " " #?????# """ #??????????????????????? | | " " #?????# """ #??????????????????????? | | " " #?????# #??????????????????????? | | " " ####### #??????????????????????? | | " " + b #??????????????????????? | | " " ############+#+#####??????????????????? | | " " #?????# #??????????????????? | | " " #?????# """#??????????????????? | | "F "" " " #?????# """#??????????????????? | | """"" #?????# !!! * R"#??????????????????? | | """"" #????## !! % ""#??????????????????? | | ############????# !! | #??????????????????? | | ????????????????## #??????????????????? | | ?????????????????# ##?????????????????? | | ?????????????????# Y "#?????????????????? | | ?????????????????# "#?????????????????? | | ???????????????### "#?????????????????? | | ???????????????# "#?????????????????? | | ???????????????# ""##?????????????????? | | ???????????????# # ; #??????????????????? | | ???????????????# u########???????????????? | | ???????????????# *! ??u?????? | | ???????????????# ########???????????????? | | ???????????????# @#??????????????????????? | | ???????????????# # #??????????????????????? | | ???????????????# # #??????????????????????? | | ???????????????#### ## #??????????????????????? | | ??????????????????#####?# #??????????????????????? | | ????????????????????????# #??????????????????????? | | ????????????????????????# #??????????????????????? | | ????????????????????????# #??????????????????????? | | ????????????????????????# #??????????????????????? | | ????????????????????????? #??????????????????????? | | ????????????????????????? #??????????????????????? | | ?????????????????????????+???????????????????????? | | ?????????????????????????????????????????????????? | | ?????????????????????????????????????????????????? | | ?????????????????????????????????????????????????? | | ?????????????????????????????Y???????????????????? | | ?????????????????????????????????????????????????? | | ?????????????????????????????????????????????????? | | ?????????????????????????????????????????????????? | | ?????????????????????????????????????????????????? | | ?????????????????????????????????????????????????? | | ?????????????????????????????????????????????????? | | ?????????????????????????????????????????????????? | | ?????????????????????????????????????????????????? | | ?????????????????????????????????????????????????? | +----------------------------------------------------+ Best States ------------- Heat Dissipation 34 Energy Generation 18 Energy Capacity 250 Matter Stores 430 Matter Capacity 450 Sight Range 16 Robot Scan Range 20 Terrain Scan Density 10 Armor Coverage 600 Resistance: KI 20 Resistance: TH 20 Resistance: EX 20 Resistance: EM 20 Resistance: I 20 Resistance: S 20 Resistance: P 20 Power Shielding 66 Utility Shielding 66 Weapon Cycling 15 Evasion (%) 55 Recoil Reduction 2 Offensive Hacking 10 Item Schematics ----------------- None Robot Schematics ------------------ None Fabricated ------------ Nothing Alien Tech Used ----------------- None Achievements -------------- None Challenges ------------ None Game ------ Seed ColdMinesnifferExtractor Manual? 0 Play Time 00:24:50 Cumulative 44.2 hours Start 2024.05.23 @ 22:44:20 End 2024.05.23 @ 23:08:22 Sessions 1 Manual Loads 0 Difficulty Adventurer Special Mode None Game No. 56 Rogue 0 Adventurer 51 Explorer 5 Win Type - Total 1 Types 1/0/0/0/0/0/0/0/0 Lore% 26 Gallery% 41 Achievement% 32 Wizard Run 0 Options --------- Layout 1 ASCII 0 Keyboard 0 Movement Arrows Keybinds 0 Fullscreen 2 Font 24/Terminus Map View 50x35 Zoom Use 0% Tactical HUD 1 Map Filters NONE Filters NONE Steam 1 RUN: b0291900-7bf7-42c2-ac4b-0e7648237bd9